bitfinex-derivatives/quotes_BTCF0:USTF0_20251128
["timestamp","ask_amount","ask_price","bid_price","bid_amount"]
[1764344656758,0.194962,92584.0,92583.0,0.04421]
[1764344657748,0.194962,92584.0,92583.0,0.04521]
[1764344659153,0.194962,92584.0,92583.0,0.001]
[1764344659445,0.194962,92584.0,92583.0,0.04531]
[1764344661751,0.205763,92584.0,92583.0,0.001]
[1764344661940,0.205763,92584.0,92583.0,0.02221]
[1764344662144,0.205763,92584.0,92583.0,0.04531]
[1764344662346,0.205763,92584.0,92583.0,0.0561111]
[1764344662648,0.205763,92584.0,92583.0,0.04531]
[1764344666153,0.022322,92584.0,92583.0,0.04531]
[1764344666346,0.022942,92584.0,92583.0,0.04531]
[1764344666848,0.000162,92584.0,92583.0,0.04531]
[1764344669349,0.044242,92584.0,92583.0,0.04531]
[1764344669956,0.000162,92584.0,92583.0,0.04531]
[1764344670656,0.022942,92584.0,92583.0,0.04531]
[1764344671152,0.044242,92584.0,92583.0,0.04531]
[1764344671358,0.000162,92584.0,92583.0,0.04531]
[1764344671757,0.022942,92584.0,92583.0,0.04531]
[1764344673658,0.000162,92584.0,92583.0,0.04531]
[1764344674660,0.043062,92584.0,92583.0,0.04515]
[1764344674848,0.043062,92584.0,92583.0,0.04588]
[1764344676056,0.043062,92584.0,92583.0,0.02294]
[1764344676258,0.043062,92584.0,92583.0,0.001]
[1764344676453,0.193062,92584.0,92583.0,0.001]
[1764344676658,0.065622,92575.0,92574.0,0.02048493]
[1764344676850,0.215622,92575.0,92574.0,0.02048493]
[1764344678146,0.215622,92575.0,92574.0,0.02348493]
[1764344678859,0.215622,92575.0,92574.0,0.02448493]
[1764344679352,0.215622,92575.0,92574.0,4.93e-06]
[1764344681566,0.215622,92575.0,92574.0,0.01918701]
[1764344682253,0.215622,92575.0,92574.0,0.01918208]
[1764344682560,0.215622,92575.0,92567.0,8.155e-05]
[1764344682561,0.0566428,92568.0,92567.0,8.155e-05]
[1764344682758,0.2066428,92568.0,92567.0,8.155e-05]
[1764344683652,0.2066428,92568.0,92567.0,0.00108155]
[1764344684658,0.20672435,92568.0,92565.0,1e-08]
[1764344684857,0.0429,92544.0,92543.0,0.04488]
[1764344685163,0.1929,92544.0,92543.0,0.04488]
[1764344685362,0.15,92544.0,92543.0,0.04488]
[1764344685562,0.02168,92555.0,92554.0,0.05815]
[1764344685865,0.04298155,92555.0,92554.0,0.05815]
[1764344686053,0.04298155,92555.0,92554.0,0.0689545]
[1764344686452,0.19298155,92555.0,92554.0,0.0689545]
[1764344686659,0.19298155,92555.0,92554.0,0.0556845]
[1764344687464,0.04298155,92555.0,92554.0,0.04488]
[1764344688058,0.19298155,92555.0,92554.0,0.04488]
[1764344688262,0.19298155,92555.0,92554.0,0.04888]
[1764344688570,0.19298155,92555.0,92554.0,0.06315]
[1764344688571,8.155e-05,92555.0,92554.0,0.06315]
[1764344688961,0.02176155,92555.0,92554.0,0.06315]
[1764344689967,8.155e-05,92555.0,92554.0,0.06315]
[1764344692972,0.05378585,92555.0,92554.0,0.04988]
[1764344693274,0.20378585,92555.0,92554.0,0.04988]
[1764344693461,0.19298155,92555.0,92554.0,0.04988]
[1764344694359,0.17176155,92555.0,92554.0,0.06315]
[1764344694564,0.15008155,92555.0,92554.0,0.08209592]
[1764344695072,8.155e-05,92555.0,92554.0,0.08209592]
[1764344695878,0.00016209,92564.0,92563.0,0.0556834]
[1764344697569,0.00016209,92564.0,92563.0,0.0566834]
[1764344698080,0.00016209,92564.0,92563.0,0.0576834]
[1764344701365,0.0537009,92585.0,92584.0,0.04488]
[1764344701570,0.1329,92585.0,92584.0,0.04488]
[1764344701768,0.09,92585.0,92584.0,0.04488]
[1764344702380,0.11145,92585.0,92584.0,0.04488]
[1764344702581,0.13362,92585.0,92584.0,0.04488]
[1764344703069,0.13862,92585.0,92584.0,0.04588]
[1764344704066,0.53862,92585.0,92584.0,0.001]
[1764344704275,0.0544219,92576.0,92575.0,0.00016209]
[1764344704478,0.2044219,92576.0,92575.0,0.04419209]
[1764344704675,0.2180319,92576.0,92575.0,0.00016209]
[1764344707082,0.2200319,92576.0,92575.0,0.00016209]
[1764344707379,0.12428,92591.0,92580.0,0.00999999]
[1764344707677,0.0108018,92577.0,92575.0,0.00016209]
[1764344711388,0.0108036,92561.0,92560.0,0.03464]
[1764344711679,0.0108027,92570.0,92540.0,0.15755952]
[1764344711680,0.0108055,92545.0,92544.0,0.057]
[1764344712787,0.0108054,92546.0,92545.0,0.04403]
[1764344714477,0.0108054,92546.0,92544.0,0.02022974]
[1764344714874,0.0108054,92546.0,92544.0,0.01922974]
[1764344715076,0.0108054,92546.0,92545.0,0.001]
[1764344715470,0.0108054,92546.0,92545.0,0.04503]
[1764344715669,0.0108054,92546.0,92545.0,0.04403]
[1764344717180,0.00016208,92554.0,92553.0,0.09962]
[1764344717380,0.08022208,92554.0,92553.0,0.09962]
[1764344717684,0.0508325,92571.0,92570.0,0.09962]
[1764344717875,0.0908625,92571.0,92570.0,0.09962]
[1764344719480,0.0108025,92571.0,92570.0,0.09962]
[1764344719676,0.00016208,92580.0,92568.0,0.02981]
[1764344719677,0.0274626,92570.0,92568.0,0.02981]
[1764344719877,0.0274626,92570.0,92569.0,0.09962]
[1764344720271,0.0441226,92570.0,92569.0,0.04976]
[1764344720476,0.0441226,92570.0,92569.0,0.09962]
[1764344721484,0.0461226,92570.0,92569.0,0.09962]
[1764344721972,0.0441226,92570.0,92569.0,0.09962]
[1764344722174,0.0461226,92570.0,92569.0,0.09962]
[1764344722376,0.0441229,92567.0,92566.0,0.05003008]
[1764344723285,0.0441229,92567.0,92566.0,0.09989008]
[1764344723676,0.0441229,92567.0,92566.0,0.05003008]
[1764344723878,0.0441229,92567.0,92566.0,0.00027008]
[1764344724778,0.0481229,92567.0,92566.0,0.00027008]
[1764344725373,0.0441229,92567.0,92566.0,0.00027008]
[1764344725580,0.0491229,92567.0,92566.0,0.00027008]
[1764344725884,0.0491229,92567.0,92566.0,0.01922462]
[1764344727787,0.0491229,92567.0,92566.0,0.06898462]
[1764344727992,0.0491229,92567.0,92566.0,0.11884462]
[1764344728285,0.0158029,92567.0,92566.0,0.11884462]
[1764344729488,0.0324629,92567.0,92566.0,0.11884462]
[1764344729684,0.0158029,92567.0,92566.0,0.11884462]
[1764344730388,0.0108029,92567.0,92566.0,0.11884462]
[1764344730578,0.004,92567.0,92566.0,0.11884462]
[1764344731086,0.0108018,92578.0,92577.0,0.09962]
[1764344732181,0.0223518,92578.0,92577.0,0.09962]
[1764344732377,0.0263518,92578.0,92577.0,0.09962]
[1764344732786,0.0148018,92578.0,92577.0,0.09962]
[1764344732983,0.0379018,92578.0,92577.0,0.09962]
[1764344734491,0.033902,92575.0,92574.0,0.02981]
[1764344735287,0.0339025,92571.0,92570.0,0.04886]
[1764344735897,0.0339029,92567.0,92566.0,0.11845462]
[1764344736490,0.0339029,92567.0,92566.0,0.01922462]
[1764344736795,0.0339029,92567.0,92556.0,0.02981]
[1764344736997,0.0339035,92562.0,92556.0,0.02981]
[1764344737796,0.0339035,92562.0,92561.0,0.09939208]
[1764344738790,0.0369035,92562.0,92561.0,0.09939208]
[1764344739195,0.0369035,92562.0,92561.0,0.11866732]
[1764344739602,0.0369035,92562.0,92561.0,0.01943732]
[1764344739798,0.0439746,92553.0,92552.0,0.11741732]
[1764344741297,0.0449746,92553.0,92552.0,0.11741732]
[1764344741797,0.0334246,92553.0,92552.0,0.11741732]
[1764344742502,0.0550446,92553.0,92552.0,0.11741732]
[1764344742795,0.0540455,92545.0,92544.0,0.12748]
[1764344743000,0.0540455,92545.0,92544.0,0.1463405]
[1764344744393,0.0540455,92545.0,92544.0,0.1473405]
[1764344745400,0.0540455,92545.0,92544.0,0.1483405]
[1764344745799,0.0108055,92545.0,92544.0,0.1483405]
[1764344746303,0.0324255,92545.0,92544.0,0.1483405]
[1764344747202,0.0540455,92545.0,92544.0,0.1483405]
[1764344747598,0.0540455,92545.0,92544.0,0.002]
[1764344747995,0.04324,92544.0,92543.0,0.00016208]
[1764344748196,0.04324,92544.0,92543.0,8e-08]
[1764344748703,0.04324,92544.0,92540.0,0.01928656]
[1764344748704,0.04324,92541.0,92540.0,0.01928656]
[1764344748904,0.0540471,92531.0,92530.0,0.09923]
[1764344749593,0.0540471,92531.0,92530.0,0.11883639]
[1764344750104,0.0108071,92531.0,92530.0,0.11883639]
[1764344750605,0.0108071,92531.0,92530.0,0.12183639]
[1764344750996,0.02162,92536.0,92535.0,0.09923]
[1764344751196,0.0324266,92536.0,92535.0,0.09923]
[1764344751397,0.0540466,92536.0,92535.0,0.09923]
[1764344752199,0.0540466,92536.0,92535.0,0.10023]
[1764344753401,0.0540466,92536.0,92530.0,0.01960639]
[1764344753402,0.0540471,92531.0,92530.0,0.01960639]
[1764344753607,0.0540476,92527.0,92520.0,0.00816208]
[1764344753799,0.04324,92509.0,92502.0,0.02825]
[1764344753993,0.04324,92509.0,92508.0,0.01983933]
[1764344754305,0.1116,92510.0,92502.0,0.02825]
[1764344754306,0.04324,92503.0,92502.0,0.02825]
[1764344754500,0.0324311,92497.0,92496.0,0.02825]
[1764344754702,0.0540511,92497.0,92496.0,0.12748]
[1764344755002,0.0324311,92497.0,92496.0,0.12748]
[1764344755206,0.03250925,92497.0,92496.0,0.12748]
[1764344755702,0.01088925,92497.0,92496.0,0.12848]
[1764344756701,0.04356208,92518.0,92517.0,0.09923]
[1764344756891,0.11780208,92518.0,92517.0,0.09923]
[1764344757499,0.0542094,92512.0,92511.0,0.12748]
[1764344760503,0.0592094,92512.0,92511.0,0.12848]
[1764344761505,0.0592094,92512.0,92511.0,0.0207339]
[1764344762005,0.0351,92489.0,92488.0,0.12451]
[1764344762206,0.0459121,92489.0,92488.0,0.04800338]
[1764344762700,0.0459121,92489.0,92488.0,8e-08]
[1764344762894,0.0459121,92489.0,92475.0,0.0283]
[1764344763098,0.0351,92487.0,92475.0,0.0283]
[1764344763304,0.0351,92487.0,92486.0,2.675e-05]
[1764344763506,0.0459146,92467.0,92466.0,0.12456]
[1764344763803,0.00016218,92476.0,92475.0,0.09626]
[1764344764004,0.001,92489.0,92475.0,0.09626]
[1764344764197,0.001,92489.0,92466.0,0.22538538]
[1764344764198,0.0108129,92483.0,92482.0,0.09626]
[1764344764398,0.0108118,92491.0,92490.0,0.0283]
[1764344764597,0.0108118,92491.0,92490.0,0.12456]
[1764344766507,0.0108118,92491.0,92481.0,0.00016218]
[1764344766508,0.0462329,92482.0,92481.0,0.04717218]
[1764344766806,0.0462329,92482.0,92481.0,0.09642218]
[1764344767001,0.0108129,92482.0,92481.0,0.09642218]
[1764344767205,0.0108113,92496.0,92495.0,0.09626]
[1764344767502,0.1992813,92496.0,92495.0,0.09626]
[1764344767702,0.2169913,92496.0,92495.0,0.09626]
[1764344768898,0.2229913,92496.0,92495.0,0.09726]
[1764344769504,0.2239913,92496.0,92495.0,0.09726]
[1764344771202,0.2062813,92496.0,92495.0,0.09726]
[1764344771407,0.0355213,92496.0,92495.0,0.09726]
[1764344771706,0.1290413,92496.0,92495.0,0.09726]
[1764344772204,0.1467513,92496.0,92495.0,0.001]
[1764344772802,0.1467513,92496.0,92495.0,0.04801]
[1764344773509,0.1467513,92496.0,92495.0,0.09726]
[1764344774311,0.1467513,92496.0,92495.0,0.001]
[1764344774515,0.1467513,92496.0,92495.0,0.08699]
[1764344774809,0.1467513,92496.0,92495.0,0.001]
[1764344775010,0.1467513,92496.0,92481.0,0.08615218]
[1764344775011,0.0324,92482.0,92481.0,0.08615218]
[1764344775208,0.0432129,92482.0,92481.0,0.08615218]
[1764344775613,0.0432129,92482.0,92480.0,8e-08]
[1764344775814,0.0108167,92449.0,92448.0,0.02773]
[1764344776004,0.0108167,92449.0,92448.0,0.08599]
[1764344776005,0.0549867,92449.0,92448.0,0.08599]
[1764344777119,0.0989359,92457.0,92456.0,0.08599]
[1764344777315,0.0108159,92457.0,92456.0,0.08599]
[1764344778316,0.0989359,92457.0,92456.0,0.08599]
[1764344778811,0.0108159,92457.0,92456.0,0.08599]
[1764344779011,0.00016218,92458.0,92457.0,0.08599]
[1764344781817,0.00016218,92458.0,92457.0,0.08699]
[1764344782208,0.00116218,92458.0,92457.0,0.09299]
[1764344783513,0.08812,92480.0,92470.0,0.01386]
[1764344783818,0.12655953,92479.0,92478.0,0.08599]
[1764344785508,0.0989342,92471.0,92470.0,0.002]
[1764344785818,0.0989357,92458.0,92457.0,0.08699]
[1764344786005,0.12656203,92458.0,92457.0,0.08699]
[1764344787211,0.12656203,92458.0,92457.0,0.08599]
[1764344787725,0.12656203,92458.0,92457.0,0.04289]
[1764344788019,0.12656203,92458.0,92443.0,0.0861278]
[1764344788020,0.0989373,92444.0,92443.0,0.0861278]
[1764344788817,0.1266594,92444.0,92443.0,0.0430278]
[1764344789009,0.1266594,92444.0,92443.0,0.0001378]
[1764344789320,0.1266594,92444.0,92443.0,0.0861278]
[1764344789814,0.0549885,92435.0,92434.0,0.08599]
[1764344790211,0.0989385,92435.0,92434.0,0.08599]
[1764344790516,0.08812,92435.0,92434.0,0.08599]
[1764344790718,0.08812,92442.0,92441.0,0.08599]
[1764344790909,0.11596183,92442.0,92441.0,0.08599]
[1764344791312,0.02784183,92442.0,92441.0,0.08599]
[1764344791514,0.02783983,92442.0,92441.0,0.08599]
[1764344791709,0.00012369,92442.0,92441.0,0.08599]
[1764344792315,0.00212369,92442.0,92441.0,0.09099]
[1764344793115,0.09817369,92442.0,92441.0,0.09099]
[1764344793416,0.00212369,92442.0,92441.0,0.09099]
[1764344793623,0.00212369,92442.0,92441.0,0.09199]
[1764344793811,0.10899119,92442.0,92441.0,0.006]
[1764344794128,0.13660843,92442.0,92441.0,0.006]
[1764344794821,0.13660843,92442.0,92441.0,0.005]
[1764344795028,0.13660843,92442.0,92441.0,0.006]
[1764344795518,0.13460843,92442.0,92441.0,0.001]
[1764344795709,0.13560843,92442.0,92441.0,0.005]
[1764344797118,0.13560843,92442.0,92441.0,0.004]
[1764344799116,0.13560843,92442.0,92434.0,0.01962482]
[1764344799117,0.1068684,92435.0,92434.0,0.01962482]
[1764344799321,0.0602394,92426.0,92425.0,0.14268]
[1764344799614,0.00011185,92426.0,92425.0,0.14268]
[1764344799915,0.04953185,92426.0,92425.0,0.14268]
[1764344800118,0.00011185,92426.0,92425.0,0.14268]
[1764344801322,0.00011185,92426.0,92425.0,0.16202737]
[1764344801720,0.002,92435.0,92425.0,0.16202737]
[1764344801922,0.00016227,92444.0,92443.0,0.09268]
[1764344802423,0.00016227,92444.0,92443.0,0.1034974]
[1764344802615,0.00016227,92444.0,92443.0,0.09268]
[1764344802815,0.00022511,92444.0,92443.0,0.09268]
[1764344803716,0.00422511,92444.0,92443.0,0.09268]
[1764344804315,0.10027511,92444.0,92443.0,0.09268]
[1764344805212,0.10027511,92444.0,92443.0,0.0464]
[1764344805823,0.10027511,92444.0,92443.0,0.09268]
[1764344807720,0.1068688,92431.0,92430.0,0.09268]
[1764344807920,0.10693164,92431.0,92430.0,0.09268]
[1764344809012,0.01088164,92431.0,92430.0,0.11906]
[1764344809716,0.00206284,92431.0,92430.0,0.12006]
[1764344814818,0.00206284,92431.0,92430.0,0.09368]
[1764344814819,0.09811284,92431.0,92430.0,0.09368]
[1764344817927,0.09811284,92431.0,92430.0,0.12006]
[1764344819026,0.00206284,92431.0,92430.0,0.12006]
[1764344820530,0.09811284,92431.0,92430.0,0.09368]
[1764344821120,0.09811284,92431.0,92430.0,0.1308789]
[1764344821323,0.0108166,92451.0,92430.0,0.0381989]
[1764344821523,0.04958227,92444.0,92443.0,0.09268]
[1764344821734,0.09912227,92444.0,92443.0,0.09268]
[1764344822432,0.00016227,92444.0,92443.0,0.09268]
[1764344823138,0.10332957,92444.0,92443.0,0.09268]
[1764344823733,0.00216227,92444.0,92443.0,0.09368]
[1764344823934,0.00216227,92444.0,92443.0,0.1044974]
[1764344824129,0.00216227,92444.0,92443.0,0.09368]
[1764344825137,0.15127,92459.0,92458.0,0.08878]
[1764344825529,0.0108129,92482.0,92460.0,0.08878]
[1764344825842,0.02752939,92474.0,92473.0,0.08878]
[1764344826133,0.0108136,92476.0,92475.0,0.11516]
[1764344826538,0.04081,92476.0,92475.0,0.02638]
[1764344826839,0.04081,92476.0,92475.0,0.11516]
[1764344827234,0.00016227,92483.0,92475.0,0.11516]
[1764344827440,0.09051227,92483.0,92482.0,0.08878]
[1764344829234,0.1011638,92474.0,92473.0,0.08978]
[1764344829732,0.1011638,92474.0,92473.0,0.08878]
[1764344830538,0.1081638,92474.0,92473.0,0.10941045]
[1764344830843,0.1081638,92474.0,92473.0,0.02063045]
[1764344831041,0.1011649,92465.0,92464.0,0.00016227]
[1764344831825,0.1011649,92465.0,92431.0,0.08878]
[1764344831826,0.0108188,92432.0,92431.0,0.08878]
[1764344832124,0.1011683,92436.0,92435.0,0.08878]
[1764344832527,0.04081,92436.0,92435.0,0.08878]
[1764344833032,0.1011675,92443.0,92442.0,0.08878]
[1764344833643,0.00016227,92445.0,92444.0,0.08878]
[1764344835241,0.00216227,92445.0,92444.0,0.09078]
[1764344836935,0.00016227,92445.0,92444.0,0.08878]
[1764344837152,0.00116227,92445.0,92444.0,0.09078]
[1764344840230,0.08052,92464.0,92463.0,0.03934]
[1764344840437,0.08052,92464.0,92463.0,0.08095]
[1764344841340,0.091336,92455.0,92454.0,0.08111227]
[1764344841739,0.091336,92455.0,92454.0,0.00016227]
[1764344843334,0.091336,92455.0,92454.0,0.08111227]
[1764344844126,0.092336,92455.0,92454.0,0.08111227]
[1764344844934,0.092336,92455.0,92454.0,0.00016227]
[1764344847042,0.094336,92455.0,92454.0,0.00116227]
[1764344847345,0.094336,92455.0,92454.0,0.02014709]
[1764344847642,0.0108186,92433.0,92432.0,0.08095]
[1764344847842,0.04136,92433.0,92432.0,0.08095]
[1764344848034,0.0913376,92442.0,92441.0,0.08095]
[1764344849845,0.0913376,92442.0,92441.0,0.04161]
[1764344850240,0.0933376,92442.0,92441.0,0.04461]
[1764344851331,0.0923376,92442.0,92441.0,0.04361]
[1764344852338,0.001,92442.0,92441.0,0.08295]
[1764344852540,0.08262,92442.0,92441.0,0.08295]
[1764344854940,0.001,92442.0,92441.0,0.08295]
[1764344855741,0.001,92442.0,92441.0,0.10271225]
[1764344857053,0.04157,92442.0,92441.0,0.10271225]
[1764344857234,0.08262,92442.0,92441.0,0.10271225]
[1764344859341,0.04157,92442.0,92441.0,0.10271225]
[1764344859545,0.001,92442.0,92441.0,0.10271225]
[1764344863954,0.00016227,92451.0,92450.0,0.0924566]
[1764344864254,0.00016227,92451.0,92450.0,0.08164]
[1764344865040,0.00116227,92451.0,92450.0,0.08164]
[1764344865244,0.00116227,92451.0,92450.0,0.08264]
[1764344865553,0.00416227,92451.0,92450.0,0.08264]
[1764344865943,0.04473227,92451.0,92450.0,0.08264]
[1764344866248,0.04373227,92451.0,92450.0,0.08264]
[1764344866446,0.00316227,92451.0,92450.0,0.08264]
[1764344867844,0.00016227,92451.0,92450.0,0.08164]
[1764344868044,0.00116227,92451.0,92450.0,0.08364]
[1764344871846,0.0108152,92463.0,92456.0,0.0241]
[1764344872158,0.0108154,92461.0,92460.0,0.08164]
[1764344872942,0.1762942,92471.0,92470.0,0.08164]
[1764344873358,0.2579142,92471.0,92470.0,0.08164]
[1764344873660,0.0924342,92471.0,92470.0,0.08164]
[1764344875252,0.08162,92471.0,92470.0,0.08164]
[1764344875449,0.0924342,92471.0,92470.0,0.08164]
[1764344875649,0.0934342,92471.0,92470.0,0.08164]
[1764344876961,0.0984342,92471.0,92470.0,0.08364]
[1764344877560,0.006,92471.0,92470.0,0.09676]
[1764344878460,0.04657,92471.0,92470.0,0.11654992]
[1764344878661,0.04557,92471.0,92470.0,0.11654992]
[1764344878863,0.005,92471.0,92470.0,0.11654992]
[1764344879061,0.08662,92471.0,92470.0,0.10342992]
[1764344879266,0.0944342,92471.0,92470.0,0.10642992]
[1764344879561,0.08362,92471.0,92470.0,0.10642992]
[1764344879760,0.04257,92471.0,92470.0,0.13052992]
[1764344879954,0.0944342,92471.0,92470.0,0.13052992]
[1764344880164,0.0944342,92471.0,92470.0,0.10642992]
[1764344880458,0.0924364,92452.0,92442.0,0.09682735]
[1764344880766,0.0924364,92452.0,92451.0,0.04050227]
[1764344880953,0.00016227,92461.0,92451.0,0.08180227]
[1764344881267,0.09259757,92461.0,92460.0,0.08164]
[1764344881460,0.08178227,92461.0,92460.0,0.08164]
[1764344881960,0.00016227,92461.0,92460.0,0.08164]
[1764344882763,0.07459227,92461.0,92460.0,0.08164]
[1764344883557,0.07659227,92461.0,92460.0,0.08764]
[1764344885665,0.08740757,92461.0,92460.0,0.08764]
[1764344886171,0.07659227,92461.0,92460.0,0.08764]
[1764344887271,0.07659227,92461.0,92460.0,0.08401]
[1764344888270,0.07659227,92461.0,92460.0,0.006]
[1764344888474,0.07659227,92461.0,92451.0,0.01920184]
[1764344888475,0.0852464,92452.0,92451.0,0.01920184]
[1764344889977,0.0872464,92452.0,92451.0,0.02920184]
[1764344894976,0.0872464,92452.0,92451.0,0.10196184]
[1764344896378,0.0493964,92452.0,92451.0,0.10196184]
[1764344896570,0.0872464,92452.0,92451.0,0.10196184]
[1764344896976,0.07643,92452.0,92451.0,0.10196184]
[1764344898172,0.07643,92452.0,92451.0,0.02920184]
[1764344901677,0.07643,92452.0,92451.0,0.09858184]
[1764344901878,0.07643,92452.0,92451.0,0.02920184]
[1764344903683,0.07643,92452.0,92451.0,0.09592184]
[1764344906284,0.07643,92452.0,92451.0,0.06163184]
[1764344907191,0.07643,92452.0,92451.0,0.09592184]
[1764344908483,0.07643,92452.0,92451.0,0.02920184]
[1764344908691,0.07643,92452.0,92451.0,0.09592184]
[1764344908895,0.07643,92452.0,92451.0,0.06163184]
[1764344909489,0.07643,92452.0,92451.0,0.02920184]
[1764344909689,0.07643,92452.0,92451.0,0.06163184]
[1764344910694,0.07643,92452.0,92451.0,0.02920184]
[1764344910997,0.07643,92452.0,92451.0,0.00766305]
[1764344911186,0.07643,92452.0,92427.0,0.06672]
[1764344911187,0.0774192,92428.0,92427.0,0.06672]
[1764344911893,0.03396,92428.0,92427.0,0.06672]
[1764344912092,0.0788684,92435.0,92434.0,0.03316]
[1764344912297,0.0788684,92435.0,92434.0,0.06497]
[1764344913800,0.0990284,92435.0,92434.0,0.06497]
[1764344914188,0.1040284,92435.0,92434.0,0.06497]
[1764344915300,0.0990292,92428.0,92427.0,0.08420094]
[1764344915492,0.0990292,92428.0,92425.0,4e-08]
[1764344915693,0.06805,92426.0,92425.0,4e-08]
[1764344915897,0.0788716,92407.0,92406.0,0.00027055]
[1764344916098,0.0788716,92407.0,92387.0,0.00013453]
[1764344916099,0.0788739,92388.0,92387.0,0.06510453]
[1764344916297,0.06805,92388.0,92387.0,0.06510453]
[1764344916999,0.03393,92388.0,92387.0,0.06510453]
[1764344917504,0.06805,92388.0,92387.0,0.08491723]
[1764344917900,0.03393,92388.0,92387.0,0.08491723]
[1764344918806,0.07305,92388.0,92387.0,0.08491723]
[1764344920898,0.07205,92388.0,92387.0,0.08491723]
[1764344921908,0.06821227,92397.0,92396.0,0.06497]
[1764344922099,0.23909227,92397.0,92396.0,0.06497]
[1764344922806,0.06821227,92397.0,92396.0,0.06497]
[1764344923611,0.23913227,92397.0,92396.0,0.06497]
[1764344925500,0.00016227,92397.0,92396.0,0.06497]
[1764344926409,0.02016,92448.0,92396.0,0.06497]
[1764344926410,0.06832043,92446.0,92445.0,0.06497]
[1764344926710,0.03393,92433.0,92432.0,0.06497]
[1764344926903,0.06805,92433.0,92432.0,0.06497]
[1764344927205,0.07913763,92446.0,92445.0,0.06497]
[1764344927615,0.06832043,92446.0,92445.0,0.06497]
[1764344928196,0.06832043,92446.0,92445.0,0.03181]
[1764344928499,0.06805,92431.0,92430.0,0.06497]
[1764344928696,0.06805,92424.0,92423.0,0.00016227]
[1764344929605,0.06805,92424.0,92423.0,0.03197227]
[1764344929812,0.0788697,92424.0,92423.0,0.06513227]
[1764344930109,0.0108147,92467.0,92432.0,0.06497]
[1764344930300,0.01108763,92446.0,92432.0,0.06497]
[1764344930704,0.00027043,92446.0,92432.0,0.06497]
[1764344931802,0.01108753,92446.0,92432.0,0.06497]
[1764344932002,0.00027043,92446.0,92432.0,0.06497]
[1764344932414,0.00916227,92433.0,92432.0,0.06497]
[1764344933508,0.00516227,92433.0,92432.0,0.06497]
[1764344934111,0.07321227,92433.0,92432.0,0.06497]
[1764344935507,0.0788697,92424.0,92423.0,0.01993809]
[1764344935809,0.06805,92424.0,92423.0,0.08490809]
[1764344936308,0.01798087,92433.0,92432.0,0.06497]
[1764344936706,0.04491087,92433.0,92432.0,0.06497]
[1764344936906,0.07903087,92433.0,92432.0,0.06497]
[1764344937103,0.06805,92424.0,92423.0,0.08490809]
[1764344938004,0.03393,92429.0,92428.0,0.06497]
[1764344938513,0.04309227,92433.0,92432.0,0.06497]
[1764344938715,0.07721227,92433.0,92432.0,0.06497]
[1764344939212,0.06821227,92433.0,92432.0,0.06497]
[1764344939810,0.00916227,92433.0,92432.0,0.06497]
[1764344940604,0.07721227,92433.0,92432.0,0.06497]
[1764344940812,0.06821227,92433.0,92432.0,0.06497]
[1764344941002,0.07621227,92433.0,92432.0,0.03181]
[1764344941207,0.0788697,92424.0,92423.0,0.08490809]
[1764344941807,0.06805,92424.0,92423.0,0.08490809]
[1764344942510,0.06805,92424.0,92423.0,0.01993809]
[1764344943814,0.07505,92424.0,92423.0,0.01993809]
[1764344946009,0.07505,92424.0,92423.0,0.08359809]
[1764344946208,0.04093,92424.0,92423.0,0.08359809]
[1764344946814,0.007,92424.0,92423.0,0.08359809]
[1764344950918,0.07251,92424.0,92423.0,0.08359809]
[1764344951514,0.07251,92424.0,92423.0,0.05137809]
[1764344951709,0.09151,92424.0,92423.0,0.02493809]
[1764344951915,0.09151,92424.0,92423.0,0.08859809]
[1764344952215,0.007,92424.0,92423.0,0.08859809]
[1764344953523,0.07251,92424.0,92423.0,0.08859809]
[1764344953916,0.007,92424.0,92423.0,0.08859809]
[1764344957424,0.07023,92424.0,92423.0,0.08859809]
[1764344957932,0.089,92424.0,92423.0,0.08859809]
[1764344960232,0.07023,92424.0,92423.0,0.08859809]
[1764344960618,0.07023,92424.0,92423.0,0.05637809]
[1764344960935,0.07023,92424.0,92423.0,0.02493809]
[1764344961823,0.07023,92424.0,92423.0,0.08442809]
[1764344962225,0.089,92424.0,92423.0,0.02493809]
[1764344962826,0.089,92424.0,92423.0,0.05556809]
[1764344963129,0.089,92424.0,92423.0,0.08442809]
[1764344964131,0.089,92424.0,92423.0,0.02493809]
[1764344964531,0.089,92424.0,92398.0,0.08610588]
[1764344964532,0.0740523,92401.0,92400.0,0.09682735]
[1764344964725,0.0740523,92401.0,92400.0,0.03063]
[1764344965240,0.0420938,92389.0,92388.0,0.05949]
[1764344965530,0.0740538,92389.0,92388.0,0.05949]
[1764344965723,0.06323,92389.0,92388.0,0.05949]
[1764344965925,0.03127,92389.0,92388.0,0.05949]
[1764344966126,0.03127,92393.0,92392.0,0.0703134]
[1764344966527,0.03127,92393.0,92392.0,0.05949]
[1764344966825,0.0108231,92395.0,92394.0,0.05949]
[1764344967226,0.0108231,92395.0,92394.0,0.07852]
[1764344967828,0.002,92395.0,92394.0,0.0893432]
[1764344968032,0.002,92395.0,92394.0,0.07852]
[1764344968727,0.002,92395.0,92394.0,0.0893432]
[1764344969535,0.002,92395.0,92394.0,0.0903432]
[1764344970839,0.0108208,92415.0,92414.0,0.05949]
[1764344971135,0.0740493,92427.0,92426.0,0.03063]
[1764344971321,0.0740493,92427.0,92426.0,0.05949]
[1764344971722,0.13832,92438.0,92432.0,0.05858]
[1764344971723,0.0716486,92433.0,92432.0,0.05858]
[1764344972926,0.0397186,92433.0,92432.0,0.05858]
[1764344973126,0.0487186,92433.0,92432.0,0.05858]
[1764344973525,0.0806486,92433.0,92432.0,0.05858]
[1764344974638,0.06983,92433.0,92432.0,0.05858]
[1764344974829,0.06083,92433.0,92432.0,0.05858]
[1764344975025,0.008,92433.0,92432.0,0.05858]
[1764344975436,0.2099681,92438.0,92437.0,0.05858]
[1764344976639,0.2179681,92438.0,92437.0,0.05858]
[1764344977334,0.008,92438.0,92437.0,0.05858]
[1764344978125,0.00016227,92442.0,92441.0,0.0693977]
[1764344978338,0.0108151,92464.0,92445.0,0.0693972]
[1764344978532,0.04264,92465.0,92445.0,0.0693972]
[1764344978727,0.0534549,92465.0,92445.0,0.0693972]
[1764344979129,0.0716452,92463.0,92462.0,0.05858]
[1764344979330,0.04264,92465.0,92464.0,0.05858]
[1764344979531,0.10347,92465.0,92464.0,0.05858]
[1764344980729,0.10347,92465.0,92464.0,0.069395]